bitfinex/quotes_ETHUSD_20250629
["timestamp","ask_amount","ask_price","bid_price","bid_amount"]
[1751196818739,0.001,2456.8,2456.5,31.58626615]
[1751196823057,0.001,2456.8,2456.5,36.23626615]
[1751196825566,0.001,2456.8,2456.6,10.55]
[1751196825766,0.001,2456.8,2456.7,18.63445583]
[1751196825944,0.001,2456.8,2456.7,18.83765583]
[1751196828867,0.001,2456.8,2456.7,23.48765583]
[1751196829273,0.001,2456.8,2456.7,24.24532697]
[1751196830767,0.001,2456.8,2456.7,25.90632697]
[1751196830951,0.001,2456.8,2456.7,17.71132697]
[1751196831357,0.001,2456.8,2456.7,25.90632697]
[1751196831752,0.001,2456.8,2456.7,17.71132697]
[1751196832056,0.001,2456.8,2456.7,25.90632697]
[1751196833782,0.001,2456.8,2456.7,26.71892697]
[1751196834871,0.001,2456.8,2456.7,27.26892697]
[1751196839975,0.001,2457.1,2457.0,0.55]
[1751196840173,0.001,2457.3,2457.1,10.0]
[1751196840341,0.001,2457.3,2457.1,10.2032]
[1751196842681,0.001,2457.3,2457.1,10.9607478]
[1751196846482,0.001,2457.3,2457.1,11.5107478]
[1751196846787,0.001,2457.3,2457.1,13.70993178]
[1751196849436,0.001,2457.3,2457.1,12.95238398]
[1751196851963,0.001,2457.3,2457.1,17.24038398]
[1751196852186,0.001,2457.3,2457.1,18.46360487]
[1751196852794,0.001,2457.3,2457.1,17.24038398]
[1751196853091,0.001,2457.3,2457.1,17.99495617]
[1751196853296,0.001,2457.3,2457.1,26.19295617]
[1751196855499,0.001,2457.3,2457.1,30.84295617]
[1751196856811,0.001,2457.3,2457.1,22.64495617]
[1751196857097,0.001,2457.3,2457.1,30.84195617]
[1751196858900,0.001,2457.3,2457.2,1.3429]
[1751196859206,0.001,2457.3,2457.2,13.44335583]
[1751196859900,0.001,2457.3,2457.2,17.44621583]
[1751196860200,0.001,2457.4,2457.3,15.6169]
[1751196860393,0.001,2457.4,2457.3,22.1519]
[1751196861909,0.001,2457.4,2457.3,26.22140718]
[1751196862118,0.001,2457.4,2457.3,28.94829988]
[1751196862487,0.5331,2458.1,2457.5,15.39807599]
[1751196862688,0.5331,2458.1,2457.5,22.24001185]
[1751196863996,0.5331,2458.1,2457.5,21.15317599]
[1751196864321,0.5331,2458.1,2457.5,21.90960053]
[1751196864632,0.5331,2458.1,2457.5,23.28058451]
[1751196865333,0.5331,2458.1,2457.5,16.74658451]
[1751196865541,0.5341,2457.8,2457.5,24.94158451]
[1751196865829,0.5341,2457.8,2457.5,24.39158451]
[1751196865993,0.5341,2457.8,2457.5,24.94158451]
[1751196866324,0.5341,2457.8,2457.5,24.39158451]
[1751196868094,0.11124782,2458.2,2458.1,4.06818274]
[1751196868294,0.11124782,2458.2,2458.1,12.67000101]
[1751196868628,0.11124782,2458.2,2458.1,22.67000101]
[1751196868823,0.11124782,2458.2,2458.1,22.87320101]
[1751196868824,0.64434782,2458.2,2458.1,22.87320101]
[1751196869891,0.64434782,2458.2,2458.1,4.27138274]
[1751196870092,0.64434782,2458.2,2458.1,12.47038274]
[1751196874232,0.64434782,2458.2,2458.1,4.27138274]
[1751196874432,0.64434782,2458.2,2458.1,1.8642]
[1751196874640,0.64434782,2458.2,2458.1,8.4022]
[1751196874812,0.64434782,2458.2,2458.1,1.8642]
[1751196875008,5.18358618,2458.2,2458.1,8.202]
[1751196875541,5.18358618,2458.2,2458.1,8.204]
[1751196876036,4.06818274,2458.1,2457.7,9.761]
[1751196876202,0.5331,2458.0,2457.8,1.8642]
[1751196876405,0.5331,2458.0,2457.8,0.2032]
[1751196876639,0.5331,2458.0,2457.9,10.61151377]
[1751196876944,0.5331,2458.0,2457.9,13.42493274]
[1751196877854,0.5331,2458.0,2457.9,10.81471377]
[1751196879048,0.5331,2458.0,2457.9,12.49071377]
[1751196883775,0.11124782,2458.2,2458.1,4.06818274]
[1751196883971,0.11124782,2458.2,2458.1,10.62918274]
[1751196884145,0.11124782,2458.2,2458.1,10.83238274]
[1751196884471,0.11124782,2458.2,2458.1,12.97685401]
[1751196885344,0.11124782,2458.2,2458.1,22.97685401]
[1751196886078,0.64434782,2458.2,2458.1,22.97685401]
[1751196888344,0.64434782,2458.2,2458.1,20.83238274]
[1751196892079,0.11124782,2458.2,2458.1,20.83238274]
[1751196893872,0.11124782,2458.2,2458.1,21.41098274]
[1751196897182,0.11124782,2458.2,2458.1,20.62918274]
[1751196898781,0.11124782,2458.2,2458.1,21.43988274]
[1751196898956,0.11124782,2458.2,2458.1,24.56365401]
[1751196902002,0.11124782,2458.2,2458.1,23.75295401]
[1751196903287,0.11124782,2458.2,2458.1,17.19195401]
[1751196903489,0.11124782,2458.2,2458.1,25.42695401]
[1751196903850,0.11124782,2458.2,2458.1,25.63015401]
[1751196904376,0.11124782,2458.2,2458.1,17.39515401]
[1751196904588,0.11124782,2458.2,2458.1,25.62915401]
[1751196905478,0.11124782,2458.2,2458.1,19.07115401]
[1751196905661,0.11124782,2458.2,2458.1,12.50538274]
[1751196905987,0.11124782,2458.2,2458.1,4.27138274]
[1751196905988,0.64434782,2458.2,2458.1,4.27138274]
[1751196906192,0.64434782,2458.2,2458.1,10.62718274]
[1751196907959,0.64434782,2458.2,2458.1,10.83038274]
[1751196909160,0.11124782,2458.2,2458.1,10.83038274]
[1751196909366,0.11124782,2458.2,2458.1,12.32025555]
[1751196911059,0.11124782,2458.2,2458.1,10.83038274]
[1751196917383,0.11124782,2458.2,2458.1,12.50838274]
[1751196921908,0.14434782,2458.4,2458.3,4.06785176]
[1751196922121,0.14434782,2458.4,2458.3,10.62585176]
[1751196922308,0.14434782,2458.4,2458.3,10.82905176]
[1751196925412,0.14434782,2458.4,2458.3,4.27105176]
[1751196925711,0.14434782,2458.4,2458.3,6.7602]
[1751196927132,0.14434782,2458.4,2458.3,6.557]
[1751196932036,0.14434782,2458.4,2458.2,4.27121259]
[1751196932210,0.14434782,2458.4,2458.3,6.555]
[1751196936719,0.14434782,2458.4,2458.3,10.62285176]
[1751196937045,0.0534462,2458.5,2458.3,10.62285176]
[1751196937248,0.0534462,2458.5,2458.4,4.0676863]
[1751196937604,0.0534462,2458.5,2458.3,10.62275859]
[1751196941658,0.0534462,2458.5,2458.3,6.555]
[1751196942341,0.0534462,2458.5,2458.3,10.62282658]
[1751196943110,0.0534462,2458.5,2458.3,6.555]
[1751196944447,0.0534462,2458.5,2458.3,10.62283232]
[1751196945360,0.0534462,2458.5,2458.3,6.555]
[1751196946164,0.0534462,2458.5,2458.3,10.62282588]
[1751196950964,0.0534462,2458.5,2458.4,6.548]
[1751196953366,0.50028741,2458.5,2458.4,6.548]
[1751196954335,4.56780825,2458.5,2458.4,6.548]
[1751196955764,4.56780825,2458.5,2458.0,4.068241]
[1751196955765,4.06771596,2458.4,2458.0,4.068241]
[1751196955971,0.2032,2458.4,2458.1,8.218]
[1751196958748,0.2032,2458.4,2458.0,4.271441]
[1751196958938,0.2032,2458.4,2458.1,6.547]
[1751196959677,4.06803098,2458.2,2457.7,5.73977781]
[1751196959872,0.2032,2458.1,2457.8,6.547]
[1751196960046,0.2032,2458.1,2457.8,10.61564132]
[1751196960252,0.2032,2458.1,2457.8,6.547]
[1751196961082,0.2032,2458.1,2457.8,10.61565354]
[1751196961755,4.21227275,2458.3,2457.8,10.61559934]
[1751196961954,0.2032,2458.2,2457.8,10.81879934]
[1751196962969,0.2032,2458.2,2457.9,0.7911]
[1751196963140,0.2566462,2458.5,2458.1,4.06806997]
[1751196963340,0.0534462,2458.5,2458.3,4.06777238]
[1751196964240,0.0534462,2458.5,2458.4,4.0676863]
[1751196965253,0.0534462,2458.5,2458.3,4.0677604]
[1751196969986,0.0534462,2458.5,2458.4,4.0676863]
[1751196970161,0.0534462,2458.5,2458.4,5.0294863]
[1751196973468,0.0534462,2458.5,2458.4,11.5824863]
[1751196974180,0.0534462,2458.5,2458.4,13.2544863]
[1751196974488,0.0534462,2458.5,2458.4,12.4948863]
[1751196974885,0.0534462,2458.5,2458.4,4.2708863]
[1751196975193,0.0534462,2458.5,2458.4,10.8248863]
[1751196976996,0.0534462,2458.5,2458.4,4.2708863]
[1751196977296,0.0534462,2458.5,2458.4,10.8238863]
[1751196977895,0.0534462,2458.5,2458.4,4.2708863]
[1751196978078,0.0534462,2458.5,2458.4,10.8228863]
[1751196982489,0.0534462,2458.5,2458.4,10.6176863]
[1751196982801,0.0534462,2458.5,2458.4,10.6186863]
[1751196984904,0.0534462,2458.5,2458.4,6.55]
[1751196985904,0.0534462,2458.5,2458.3,4.27099224]
[1751196986075,0.0534462,2458.5,2458.4,6.55]
[1751196986475,0.0534462,2458.5,2458.3,4.27099224]
[1751196986709,0.0534462,2458.5,2458.4,6.55]
[1751196987308,0.0534462,2458.5,2458.4,10.6176863]
[1751196991311,0.0534462,2458.5,2458.4,11.4407863]
[1751196993014,0.0534462,2458.5,2458.4,10.6176863]
[1751196995117,0.0534462,2458.5,2458.3,0.2032]
[1751196995416,0.0534462,2458.5,2458.1,4.27137635]
[1751196995712,0.2032,2458.4,2458.2,6.548]
[1751196995917,0.2032,2458.4,2458.0,4.06833725]
[1751196996114,4.2708863,2458.4,2458.0,4.06833725]
[1751196996414,4.2708863,2458.4,2458.1,6.548]
[1751196999333,0.1444,2458.3,2457.9,0.2032]
[1751196999503,0.1444,2458.3,2457.7,1.672]
[1751196999504,4.0681923,2458.1,2458.0,6.549]
[1751196999827,4.06805317,2458.2,2458.0,6.549]
[1751196999995,0.2032,2458.1,2458.0,6.549]
[1751197001616,0.2032,2458.2,2458.0,10.61734825]
[1751197003820,0.2032,2458.2,2458.1,4.06818274]
[1751197004221,0.1978462,2458.5,2458.1,4.06818274]
[1751197004416,0.2032,2458.4,2458.2,4.06794898]
[1751197004617,0.2032,2458.4,2458.3,6.55]
[1751197016467,0.3476,2458.4,2458.3,6.547]
[1751197024068,0.2032,2458.4,2458.3,6.547]
[1751197024890,0.2032,2458.4,2458.3,10.61485176]
[1751197025094,0.2032,2458.4,2458.3,6.547]
[1751197025658,0.2032,2458.4,2458.3,10.61485176]
[1751197025858,0.0534462,2458.5,2458.4,4.0676863]
[1751197027299,0.0534462,2458.5,2458.3,12.16537088]
[1751197027491,0.0534462,2458.5,2458.4,4.0676863]
[1751197029303,0.0534462,2458.5,2458.4,4.8867863]
[1751197031107,0.0534462,2458.5,2458.4,5.0899863]
[1751197031289,0.0534462,2458.5,2458.4,6.81553282]
[1751197037025,0.0534462,2458.5,2458.4,15.02453282]
[1751197038017,0.0534462,2458.5,2458.4,5.0899863]
[1751197038217,0.0534462,2458.5,2458.4,11.6329863]
[1751197056122,0.0534462,2458.5,2458.4,5.0899863]
[1751197056322,0.0534462,2458.5,2458.4,12.4788863]
[1751197059155,0.0534462,2458.5,2458.4,4.2708863]
[1751197059341,0.0534462,2458.5,2458.4,12.4808863]
[1751197059925,0.0534462,2458.5,2458.4,0.2032]
[1751197060123,0.0534462,2458.5,2458.4,10.8158863]
[1751197062557,0.0534462,2458.5,2458.4,4.2708863]
[1751197062855,0.0534462,2458.5,2458.4,10.8158863]
[1751197070172,0.0534462,2458.5,2458.4,12.47085954]
[1751197072944,0.0534462,2458.5,2458.4,13.30045954]
[1751197077096,0.0534462,2458.5,2458.4,4.2708863]
[1751197077248,0.0534462,2458.5,2458.4,12.4798863]
[1751197078047,0.0534462,2458.5,2458.4,4.2708863]
[1751197078473,0.0534462,2458.5,2458.4,13.2705863]
[1751197081480,0.0534462,2458.5,2458.4,12.4898863]
[1751197084382,0.0534462,2458.5,2458.4,4.2708863]
[1751197084565,0.0534462,2458.5,2458.4,12.4908863]
[1751197084954,0.0534462,2458.5,2458.4,1.8702]
[1751197085159,0.0534462,2458.5,2458.4,8.4232]
[1751197085876,0.0534462,2458.5,2458.4,12.4908863]
[1751197086992,0.0534462,2458.5,2458.4,8.4232]
[1751197087704,0.0534462,2458.5,2458.4,12.4908863]
[1751197095010,0.0534462,2458.5,2458.4,5.9378863]
[1751197095210,0.0534462,2458.5,2458.4,12.4878863]
[1751197095405,0.0534462,2458.5,2458.4,8.4202]
[1751197099882,0.0534462,2458.5,2458.4,6.548]
[1751197100320,0.47997422,2458.5,2458.4,6.548]
[1751197101824,4.54749506,2458.5,2458.0,4.06825047]
[1751197102028,4.54749506,2458.5,2458.1,6.56]
[1751197102029,4.06769818,2458.4,2458.1,6.56]
[1751197102522,4.06771437,2458.4,2458.1,6.56]
[1751197102724,4.54759148,2458.5,2458.1,6.56]
[1751197102932,0.47997422,2458.5,2458.1,10.62806341]
[1751197104820,0.0534462,2458.5,2458.2,0.7895]
[1751197105127,0.0534462,2458.5,2458.4,4.0676863]
[1751197106801,0.0534462,2458.5,2458.4,4.8571863]
[1751197110029,0.0534462,2458.5,2458.4,5.0603863]
[1751197112232,0.0534462,2458.5,2458.4,4.2708863]
[1751197113604,0.0534462,2458.5,2458.4,0.2032]
[1751197113832,0.0534462,2458.5,2458.3,5.73776113]
[1751197114015,0.0534462,2458.5,2458.4,10.6246863]
[1751197116735,0.0534462,2458.5,2458.3,1.8732]
[1751197116936,0.0534462,2458.5,2458.4,6.558]
[1751197124754,0.0534462,2458.5,2458.4,11.4306863]
[1751197125039,0.0534462,2458.5,2458.4,13.16786004]
[1751197126318,0.0534462,2458.5,2458.4,10.6256863]
[1751197146977,0.0534462,2458.5,2458.4,11.4325863]
[1751197156853,0.0534462,2458.5,2458.4,11.6357863]
[1751197172738,0.0534462,2458.5,2458.4,5.0777863]
[1751197172934,0.0534462,2458.5,2458.4,13.2877863]
[1751197173253,0.0534462,2458.5,2458.4,15.0233476]
[1751197174047,0.0534462,2458.5,2458.4,15.0253476]
[1751197174235,0.0534462,2458.5,2458.4,14.2184476]
[1751197174433,0.0534462,2458.5,2458.4,12.4828863]
[1751197175828,0.0534462,2458.5,2458.4,4.2708863]
[1751197176231,0.0534462,2458.5,2458.4,12.4828863]
[1751197176438,0.1978462,2458.5,2458.4,1.667]
[1751197176840,0.1978462,2458.5,2458.4,8.212]
[1751197177016,4.06785176,2458.3,2458.2,0.2032]
[1751197177214,0.1444,2458.2,2457.9,6.549]
[1751197177453,0.1444,2458.2,2458.0,6.549]
[1751197177652,0.1444,2458.2,2458.0,6.564]
[1751197177830,0.1444,2458.2,2457.8,4.0686672]
[1751197178026,0.1444,2458.2,2457.9,10.63548423]
[1751197178227,0.1444,2458.2,2457.9,10.63543393]
[1751197179022,0.1444,2458.2,2457.9,6.567]
[1751197179358,0.1444,2458.4,2458.0,4.06828217]
[1751197179540,0.1444,2458.4,2458.1,6.568]
[1751197180330,4.06818274,2458.1,2457.6,0.75639376]
[1751197180521,4.21258274,2458.1,2457.6,0.75639376]
[1751197180723,4.48969069,2458.0,2457.7,6.569]
[1751197181549,0.42125827,2458.0,2457.7,6.569]
[1751197181753,4.21265023,2458.1,2457.7,10.63783072]
[1751197181754,0.1444,2458.1,2457.7,10.63783072]
[1751197181951,0.1444,2458.3,2457.9,4.06848277]
[1751197182157,0.1444,2458.3,2458.0,10.63733877]
[1751197182324,0.1444,2458.3,2458.0,6.569]
[1751197183240,0.1444,2458.3,2458.0,10.63732457]
[1751197184528,0.1444,2458.3,2458.0,6.569]
[1751197184848,0.1444,2458.3,2458.0,10.63726132]
[1751197187241,0.2032,2458.4,2458.1,4.06810556]
[1751197187441,0.2032,2458.4,2458.0,7.3464]
[1751197187638,0.2032,2458.4,2458.1,4.06809902]
[1751197197587,0.2032,2458.4,2458.0,10.63721144]
[1751197197782,0.1444,2458.3,2458.0,6.569]
[1751197198150,0.1444,2458.3,2458.0,10.63733545]
[1751197203579,0.1444,2458.3,2458.0,6.569]
[1751197203880,0.1444,2458.3,2458.0,10.63731974]
[1751197204683,4.06804214,2458.2,2458.1,6.56]
[1751197204988,0.84833601,2458.2,2458.1,6.56]
[1751197205355,4.91642868,2458.2,2457.7,4.06872807]
[1751197205687,4.06809267,2458.2,2457.8,6.7632]
[1751197206268,4.06809267,2458.2,2457.9,6.562]
[1751197206463,0.2032,2458.0,2457.9,6.562]
[1751197207687,0.3476,2458.0,2457.9,6.562]
[1751197210594,0.3476,2458.0,2457.7,4.06875112]
[1751197210799,0.3476,2458.0,2457.9,6.56]
[1751197211809,0.2032,2458.0,2457.9,6.56]
[1751197212359,0.2032,2458.0,2457.9,10.62851377]
[1751197212701,0.2032,2458.0,2457.9,6.56]
[1751197214309,0.1444,2457.9,2457.6,0.95959376]
[1751197214678,4.27204485,2457.7,2457.6,0.75639376]
[1751197214880,4.41644485,2457.7,2457.6,7.31539376]
[1751197216098,0.3476,2457.7,2457.6,7.31539376]
[1751197216431,4.41644485,2457.7,2457.6,7.31539376]
[1751197216608,1.1960996,2457.7,2457.6,7.31539376]
[1751197218710,5.26494445,2457.7,2457.6,7.31539376]
[1751197219087,1.1960996,2457.7,2457.6,7.31539376]
[1751197220236,5.26494445,2457.7,2457.6,7.31539376]
[1751197220626,1.1960996,2457.7,2457.6,7.31539376]
[1751197222734,5.26494445,2457.7,2457.6,7.31539376]
[1751197224448,1.1960996,2457.7,2457.6,7.31539376]
[1751197224751,0.2032,2457.7,2457.6,7.31539376]
[1751197225815,10.0,2458.1,2457.7,4.06873848]
[1751197226034,0.2032,2457.9,2457.7,4.06873848]
[1751197227928,0.2032,2457.9,2457.7,4.06881035]
[1751197230355,0.2032,2457.9,2457.7,4.06882852]
[1751197231265,0.2032,2457.9,2457.6,11.38431049]
[1751197232763,0.2032,2457.9,2457.7,4.06884441]
[1751197234263,0.2032,2457.9,2457.6,11.38432821]
[1751197234569,0.2032,2457.9,2457.7,4.06881234]
[1751197235076,0.2032,2457.9,2457.6,11.38431968]
[1751197237068,0.1444,2457.8,2457.7,6.558]
[1751197237264,4.2130793,2457.8,2457.7,6.558]
[1751197238548,4.2130793,2457.8,2457.7,6.559]
[1751197238748,4.27204485,2457.7,2457.6,0.75639376]
[1751197239149,4.27204485,2457.7,2457.6,7.31439376]
[1751197239388,5.85766363,2457.7,2457.6,0.75639376]
[1751197239549,4.76357599,2457.5,2457.4,0.002]
[1751197239861,0.1444,2457.5,2457.4,0.002]
[1751197240048,4.21357599,2457.5,2457.4,0.002]
[1751197241049,0.1444,2457.5,2457.4,0.002]
[1751197241249,5.74609829,2457.6,2457.4,0.002]
[1751197241482,6.83114261,2457.6,2457.4,0.002]
[1751197242047,5.15414261,2457.6,2457.4,0.002]
[1751197247100,1.08504432,2457.6,2457.4,0.002]
[1751197247465,5.15407181,2457.6,2457.4,0.002]
[1751197247666,1.08504432,2457.6,2457.4,0.002]
[1751197248799,5.15405803,2457.6,2457.4,0.002]
[1751197249469,4.06917599,2457.5,2457.4,0.002]
[1751197249671,5.15415064,2457.6,2457.4,0.002]
[1751197249969,0.93673996,2457.5,2457.4,0.002]
[1751197250582,4.06910632,2457.6,2457.4,0.002]
[1751197252271,4.21332633,2457.7,2457.4,0.002]
[1751197253372,0.1444,2457.7,2457.4,0.002]
[1751197253771,4.21326025,2457.7,2457.4,0.002]
[1751197253972,0.2032,2457.6,2457.4,0.002]
[1751197257905,14.49575702,2457.9,2457.4,4.07132296]
[1751197258110,0.2032,2457.8,2457.4,4.07132296]
[1751197259399,2.2619776,2457.8,2457.5,6.561]
[1751197259705,6.330734,2457.8,2457.5,6.561]
[1751197260908,4.06886196,2457.7,2457.5,6.561]
[1751197261210,6.33074993,2457.8,2457.5,6.561]
[1751197263232,4.06886045,2457.7,2457.5,6.561]
[1751197264431,6.15151735,2457.7,2457.5,6.561]
[1751197265237,2.0826569,2457.7,2457.5,6.561]
[1751197265443,6.15151451,2457.7,2457.5,6.561]
[1751197265643,2.0826569,2457.7,2457.5,6.561]
[1751197267128,6.15150363,2457.7,2457.5,6.561]
[1751197270102,2.0826569,2457.7,2457.5,6.561]
[1751197270304,4.27197544,2457.8,2457.5,6.561]
[1751197275448,4.06885276,2457.7,2457.5,6.561]
[1751197276254,4.27196553,2457.8,2457.5,6.561]
[1751197277754,0.2032,2457.8,2457.5,6.561]
[1751197279352,4.27190896,2457.8,2457.5,6.561]
[1751197279554,5.16309682,2457.8,2457.5,6.561]
[1751197280250,0.2032,2457.8,2457.5,6.561]
[1751197280449,11.98610455,2458.2,2457.7,4.06884485]
[1751197280754,0.2032,2457.9,2457.7,4.06884485]
[1751197282553,10.1444,2458.4,2457.8,4.0686793]
[1751197282723,0.2032,2458.1,2457.9,6.554]
[1751197292474,0.2032,2458.1,2457.7,4.06875463]
[1751197292679,0.2032,2458.1,2458.0,6.551]
[1751197309427,0.63032273,2458.1,2457.7,4.89696703]
[1751197309627,0.2032,2458.1,2457.8,6.55]
[1751197312129,4.271387,2458.1,2457.8,6.55]
[1751197312331,0.2032,2458.1,2457.8,6.55]
[1751197316314,4.06861194,2457.9,2457.8,6.55]
[1751197316517,0.1444,2458.0,2457.8,6.55]
[1751197316705,0.565673,2458.0,2457.8,6.55]
[1751197316909,4.63413204,2458.0,2457.8,6.55]
[1751197317232,0.421273,2458.0,2457.8,6.55]
[1751197317431,0.2032,2457.9,2457.8,6.55]
[1751197325640,0.2032,2457.9,2457.8,10.6186793]
[1751197325807,0.2032,2457.9,2457.8,11.3954793]
[1751197326924,0.2032,2458.1,2457.8,11.3954793]
[1751197327811,0.2032,2458.1,2458.0,4.06834825]
[1751197328012,0.7478462,2458.5,2458.0,4.83430871]
[1751197328013,0.0534462,2458.5,2458.0,4.83430871]
[1751197328231,0.2566462,2458.5,2458.1,10.62107802]
[1751197334050,4.32418951,2458.5,2458.1,6.553]
[1751197338933,4.06780615,2458.4,2458.1,6.553]
[1751197339551,4.06780615,2458.4,2458.2,6.55]
[1751197340443,4.32425258,2458.5,2458.2,6.55]
[1751197340756,5.17785843,2458.5,2458.2,6.55]
[1751197341065,1.11025205,2458.5,2458.2,6.55]
[1751197341250,0.2566462,2458.5,2458.2,6.55]
[1751197341582,4.32418976,2458.5,2458.2,6.55]
[1751197341868,4.32418976,2458.5,2458.3,6.549]
[1751197342236,4.0676863,2458.4,2458.3,6.549]
[1751197342567,4.32424459,2458.5,2458.3,6.549]
[1751197342890,4.0676863,2458.4,2458.3,6.549]
[1751197345965,4.0676863,2458.4,2458.0,0.9692]
[1751197346286,4.06832232,2458.1,2457.7,1.67]
[1751197346491,4.27154966,2458.0,2457.6,0.9802]
[1751197346687,4.27154966,2458.0,2457.8,6.549]
[1751197347585,0.2032,2458.0,2457.8,6.549]
[1751197349072,4.27158153,2458.0,2457.8,6.549]
[1751197350691,4.27158153,2458.0,2457.9,6.549]
[1751197352591,4.27158153,2458.0,2457.6,0.9802]
[1751197352592,4.06851377,2457.9,2457.6,0.9802]
[1751197352793,4.27162577,2458.0,2457.7,6.55]
[1751197353999,4.27162577,2458.0,2457.8,6.55]
[1751197355500,0.2032,2458.0,2457.8,6.55]
[1751197357001,4.27154857,2458.0,2457.9,6.55]
[1751197357400,0.2032,2458.0,2457.9,6.55]
[1751197357770,4.27154825,2458.0,2457.9,6.55]
[1751197359004,4.06854571,2457.9,2457.6,0.9802]
[1751197359300,4.06854571,2457.9,2457.7,6.55]
[1751197360109,4.27163659,2458.0,2457.7,6.55]
[1751197365809,4.27163659,2458.0,2457.6,5.04920335]
[1751197365999,4.27163659,2458.0,2457.7,6.55]
[1751197375346,0.2032,2458.0,2457.7,6.55]
[1751197376960,4.27156635,2458.0,2457.7,6.55]
[1751197379224,0.2032,2458.0,2457.7,6.55]
[1751197381613,0.2032,2458.0,2457.7,10.61883107]
[1751197381812,0.2032,2458.0,2457.7,6.55]
[1751197384442,0.2032,2458.0,2457.7,10.61883654]
[1751197384616,0.2032,2458.0,2457.7,6.55]
[1751197391850,4.27156063,2458.0,2457.7,6.55]
[1751197392550,0.2032,2458.0,2457.7,10.61882087]
[1751197393250,0.2032,2458.0,2457.8,4.06866653]
[1751197394553,0.2032,2458.0,2457.7,10.61875609]
[1751197399464,0.2032,2458.0,2457.8,4.06866731]
[1751197400483,0.2032,2458.0,2457.7,10.61876281]
[1751197401837,0.2032,2458.0,2457.7,4.06876281]
[1751197402037,0.2032,2458.0,2457.8,6.549]
[1751197402234,0.3476,2458.0,2457.9,6.549]
[1751197402576,1.19598143,2458.0,2457.9,6.549]
[1751197403754,1.05158143,2458.0,2457.9,6.549]
[1751197403956,0.2032,2458.0,2457.9,6.549]
[1751197417387,0.2032,2458.0,2457.6,4.27211673]
[1751197417583,0.2032,2458.0,2457.7,6.548]
[1751197419604,0.2032,2458.0,2457.7,10.6168404]
[1751197422496,0.2032,2458.0,2457.7,4.0688404]
[1751197422794,0.2032,2458.0,2457.8,6.548]
[1751197430326,0.3476,2458.0,2457.7,4.0688404]
[1751197430547,0.3476,2458.0,2457.9,6.547]
[1751197431096,0.2032,2458.0,2457.9,6.547]
[1751197431421,0.2032,2458.0,2457.9,10.61551377]
[1751197439348,0.2032,2458.0,2457.9,12.18528966]
[1751197439924,4.21212407,2458.4,2457.9,12.18528966]
[1751197440127,0.2032,2458.3,2457.9,10.61551377]
[1751197442749,0.2032,2458.3,2457.9,6.547]
[1751197443248,4.27111185,2458.3,2457.9,6.547]
[1751197444129,4.27111185,2458.3,2457.9,10.61549954]
[1751197444629,4.27111185,2458.3,2457.9,6.547]
[1751197445148,6.12476624,2458.3,2457.9,10.61548993]
[1751197445348,6.12476624,2458.3,2457.9,6.547]
[1751197446737,6.12476624,2458.3,2457.8,4.87900416]
[1751197446937,6.12476624,2458.3,2457.9,6.546]
[1751197447138,4.06801789,2458.2,2457.9,6.546]
[1751197448066,4.06801789,2458.2,2457.8,4.87900416]
[1751197448252,4.06801789,2458.2,2458.0,6.546]
[1751197448419,4.91635001,2458.2,2458.0,6.546]
[1751197450464,0.2032,2458.3,2458.0,6.546]
[1751197454328,4.27107388,2458.3,2458.0,6.546]
[1751197454828,4.0680232,2458.2,2458.0,6.546]
[1751197455463,4.27114056,2458.3,2458.0,6.546]
[1751197456056,4.27114056,2458.3,2457.8,4.87900422]
[1751197456263,4.27114056,2458.3,2458.1,6.545]
[1751197456563,0.84832978,2458.2,2458.1,6.545]
[1751197456866,4.91634702,2458.2,2458.1,6.545]
[1751197457560,0.84832978,2458.2,2458.1,6.545]
[1751197459275,4.91634702,2458.2,2458.1,6.545]
[1751197460836,4.91641846,2458.2,2457.8,0.8104]
[1751197461173,4.06808868,2458.2,2458.1,6.545]
[1751197463475,0.2032,2458.1,2457.8,4.87905732]
[1751197463661,0.2032,2458.1,2457.9,6.545]
[1751197465743,0.2032,2458.1,2457.9,10.613507]
[1751197466574,0.2032,2458.1,2458.0,4.06834825]
[1751197466776,0.2032,2458.1,2458.0,4.89334825]
[1751197467172,4.12099495,2458.5,2458.1,4.06816405]
[1751197467337,0.2032,2458.3,2458.1,4.06816405]
[1751197468547,0.2032,2458.3,2458.2,6.544]
[1751197490610,0.2032,2458.3,2458.2,7.325]
[1751197491199,0.2032,2458.3,2458.2,11.39301724]
[1751197491503,0.0534462,2458.5,2458.2,11.39301724]
[1751197491504,0.2566462,2458.5,2458.2,11.39292463]
[1751197491875,1.68903735,2458.5,2458.2,7.325]
[1751197492076,0.2566462,2458.5,2458.2,7.325]
[1751197492500,0.2566462,2458.5,2458.2,11.3930169]
[1751197493296,0.2566462,2458.5,2458.3,4.06783715]
[1751197493709,0.2566462,2458.5,2458.2,11.3929413]
[1751197494204,0.2566462,2458.5,2458.2,11.39292921]
[1751197495008,0.2566462,2458.5,2458.3,4.0678478]
[1751197496314,0.2566462,2458.5,2458.2,11.39292144]
[1751197500416,0.2566462,2458.5,2458.3,4.06784013]
[1751197500632,0.2566462,2458.5,2458.4,6.542]
[1751197502625,0.2566462,2458.5,2458.4,10.6096863]
[1751197502922,0.0534462,2458.5,2458.4,10.6096863]
[1751197503920,0.0534462,2458.5,2458.4,12.95117122]
[1751197517701,0.0534462,2458.5,2458.4,13.67183067]
[1751197517902,0.0534462,2458.5,2458.4,13.66809844]
[1751197525430,0.0534462,2458.5,2458.4,12.95117122]
[1751197526938,0.0534462,2458.5,2458.4,13.66809844]
[1751197527341,0.0534462,2458.5,2458.4,13.66586824]
[1751197536562,0.0534462,2458.5,2458.4,25.87586824]
[1751197536724,0.0534462,2458.5,2458.4,17.67386824]
[1751197537056,0.0534462,2458.5,2458.4,25.32586824]
[1751197537924,0.0534462,2458.5,2458.4,25.32486824]
[1751197539570,0.0534462,2458.5,2458.4,17.12386824]
[1751197539774,0.0534462,2458.5,2458.4,25.32486824]
[1751197542471,0.0534462,2458.5,2458.4,25.87486824]
[1751197544038,0.0534462,2458.5,2458.4,26.57486824]
[1751197546652,0.0534462,2458.5,2458.4,26.77806824]
[1751197547769,0.00710392,2459.0,2458.9,15.43405916]